[Event "Turkish Youth Championship 2024"]
[Site "Samsun"]
[Date "2024.05.20"]
[Round "4"]
[White "Ekinci, Berkay"]
[Black "Turgut, Hakan"]
[Result "0-1"]
[ECO "B23"]
[WhiteElo "1891"]
[BlackElo "1954"]
[Annotator "ChessBase"]
[PlyCount "72"]
[EventDate "2024.05.18"]
[EventType "swiss"]
[EventCountry "TUR"]
[SourceTitle "playchess.com"]
[Source "ChessBase"]
[SourceQuality "1"]
[TimeControl "5400+30"]

1. e4 {[%emt 0:01:00]} c5 {[%emt 0:03:00]} 2. Nc3 {[%emt 0:00:30]} Nc6 {[%emt 0:00:30]} 3. Bb5 {[%emt 0:00:00]} g6 {[%emt 0:00:30]} 4. f4 {[%emt 0:03:00]} Nd4 {[%emt 0:03:30]} 5. Nf3 {[%emt 0:00:30]} Nxb5 {[%emt 0:01:30]} 6. Nxb5 {[%emt 0:00:30]} a6 {[%emt 0:01:30]} 7. Nc3 {[%emt 0:00:00]} Bg7 {[%emt 0:00:30]} 8. O-O {[%emt 0:01:00]} d6 {[%emt 0:02:30]} 9. d3 {[%emt 0:00:30]} Nf6 {[%emt 0:03:30]} 10. Qe1 {[%emt 0:12:30]} b5 {[%emt 0:16:30]} 11. e5 {[%emt 0:02:30]} dxe5 {[%emt 0:01:30]} 12. fxe5 {[%emt 0:02:30]} Nd5 {[%emt 0:03:30]} 13. Ng5 {[%emt 0:08:30]} O-O {[%emt 0:03:30]} 14. e6 {[%emt 0:06:30]} Bd4+ {[%emt 0:07:30]} 15. Kh1 {[%emt 0:00:30]} fxe6 {[%emt 0:04:30]} 16. Rxf8+ {[%emt 0:02:30]} Qxf8 {[%emt 0:00:00]} 17. Nce4 {[%emt 0:14:30]} Qf5 {[%emt 0:11:00]} 18. c3 {[%emt 0:05:30]} Bf6 {[%emt 0:00:00]} 19. Nf3 {[%emt 0:00:30]} Nb6 {[%emt 0:06:00]} 20. Be3 {[%emt 0:07:30]} Nd7 {[%emt 0:00:30]} 21. Nfd2 {[%emt 0:10:30]} Bb7 {[%emt 0:04:30]} 22. Qe2 {[%emt 0:02:11]} Bg7 {[%emt 0:04:30]} 23. Ng3 {[%emt 0:06:46]} Qd5 {[%emt 0:02:26]} 24. Nde4 {[%emt 0:00:52]} Rc8 {[%emt 0:01:00]} 25. b3 {[%emt 0:04:53]} Nf6 {[%emt 0:05:22]} 26. Rd1 {[%emt 0:01:17]} Nxe4 {[%emt 0:03:14]} 27. Nxe4 {[%emt 0:00:31]} c4 {[%emt 0:01:39]} 28. bxc4 {[%emt 0:02:54]} bxc4 {[%emt 0:00:06]} 29. Nc5 {[%emt 0:00:05]} Ba8 {[%emt 0:05:27]} 30. dxc4 {[%emt 0:02:39]} Qf5 {[%emt 0:01:17]} 31. Bd4 {[%emt 0:00:50]} e5 {[%emt 0:01:21]} 32. Be3 {[%emt 0:00:32]} h5 {[%emt 0:00:56]} 33. Rf1 {[%emt 0:01:01]} Qh3 {[%emt 0:00:15]} 34. Kg1 {[%emt 0:00:47]} Bxg2 {[%emt 0:00:14]} 35. Rb1 {[%emt 0:00:48]} Bf3 {[%emt 0:00:13]} 36. Qd3 {[%emt 0:00:45]} Qg2# {[%emt 0:00:37]} 0-1

[Event "Turkish Youth Championship 2024"]
[Site "Samsun"]
[Date "2024.05.20"]
[Round "4"]
[White "Cicek, Bilal Emre"]
[Black "Atis, Hasan"]
[Result "1/2-1/2"]
[ECO "A11"]
[WhiteElo "1873"]
[BlackElo "2014"]
[Annotator "ChessBase"]
[PlyCount "124"]
[EventDate "2024.05.18"]
[EventType "swiss"]
[EventCountry "TUR"]
[SourceTitle "playchess.com"]
[Source "ChessBase"]
[SourceQuality "1"]
[TimeControl "5400+30"]

1. c4 {[%emt 0:01:00]} Nf6 {[%emt 0:01:00]} 2. g3 {[%emt 0:00:30]} c6 {[%emt 0:00:00]} 3. Bg2 {[%emt 0:00:00]} d5 {[%emt 0:00:00]} 4. Nf3 {[%emt 0:00:00]} dxc4 {[%emt 0:00:00]} 5. Na3 {[%emt 0:04:30]} b5 {[%emt 0:03:00]} 6. d3 {[%emt 0:02:30]} cxd3 {[%emt 0:15:30]} 7. O-O {[%emt 0:00:00]} Bb7 {[%emt 0:01:30]} 8. Ne5 {[%emt 0:04:00]} a6 {[%emt 0:00:30]} 9. Qb3 {[%emt 0:06:30]} e6 {[%emt 0:02:30]} 10. Rd1 {[%emt 0:02:30]} Qc7 {[%emt 0:17:30]} 11. Bf4 {[%emt 0:11:30]} Qc8 {[%emt 0:08:30]} 12. Rxd3 {[%emt 0:23:30]} Be7 {[%emt 0:02:30]} 13. Rc1 {[%emt 0:05:30]} O-O {[%emt 0:01:30]} 14. Be3 {[%emt 0:12:30]} Qc7 {[%emt 0:08:30]} 15. Bf4 {[%emt 0:02:30]} g5 {[%emt 0:11:30]} 16. Nxf7 {[%emt 0:02:46]} gxf4 {[%emt 0:00:30]} 17. Ng5 {[%emt 0:00:23]} Nd5 {[%emt 0:12:39]} 18. Nxe6 {[%emt 0:02:12]} Qe5 {[%emt 0:00:45]} 19. Nxf8 {[%emt 0:00:24]} Kxf8 {[%emt 0:01:11]} 20. Nc4 {[%emt 0:05:48]} bxc4 {[%emt 0:05:46]} 21. Rxd5 {[%emt 0:05:05]} cxb3 {[%emt 0:00:55]} 22. Rxe5 {[%emt 0:00:02]} fxg3 {[%emt 0:02:37]} 23. Rf5+ {[%emt 0:02:20]} Kg7 {[%emt 0:00:12]} 24. hxg3 {[%emt 0:01:13]} bxa2 {[%emt 0:00:35]} 25. Ra5 {[%emt 0:00:12]} Ra7 {[%emt 0:00:32]} 26. Rxa2 {[%emt 0:00:28]} c5 {[%emt 0:00:01]} 27. Ra4 {[%emt 0:00:21]} Bc8 {[%emt 0:03:28]} 28. Bd5 {[%emt 0:00:43]} Nd7 {[%emt 0:00:09]} 29. Be6 {[%emt 0:01:12]} h5 {[%emt 0:01:06]} 30. b3 {[%emt 0:01:20]} Nb6 {[%emt 0:00:58]} 31. Re4 {[%emt 0:00:06]} Bf8 {[%emt 0:00:02]} 32. Bxc8 {[%emt 0:00:38]} Nxc8 {[%emt 0:00:02]} 33. Re5 {[%emt 0:00:58]} Rb7 {[%emt 0:00:00]} 34. Rc3 {[%emt 0:00:34]} Nd6 {[%emt 0:01:14]} 35. Rxh5 {[%emt 0:00:45]} Nb5 {[%emt 0:00:29]} 36. Rc4 {[%emt 0:02:18]} Kg6 {[%emt 0:00:42]} 37. Re5 {[%emt 0:00:21]} Nd4 {[%emt 0:00:09]} 38. Re8 {[%emt 0:00:47]} Kf7 {[%emt 0:00:09]} 39. Ra8 {[%emt 0:00:54]} Nxe2+ {[%emt 0:00:37]} 40. Kf1 {[%emt 0:00:13]} Nd4 {[%emt 0:00:00]} 41. Rxa6 {[%emt 0:00:14]} Rxb3 {[%emt 0:00:00]} 42. Raa4 {[%emt 0:00:27]} Rd3 {[%emt 0:00:06]} 43. Ra6 {[%emt 0:00:14]} Be7 {[%emt 0:00:28]} 44. Kg2 {[%emt 0:00:13]} Rd2 {[%emt 0:00:23]} 45. Rb6 {[%emt 0:01:12]} Re2 {[%emt 0:01:05]} 46. Ra6 {[%emt 0:00:21]} Re5 {[%emt 0:01:27]} 47. Raa4 {[%emt 0:00:11]} Rd5 {[%emt 0:00:19]} 48. Ra6 {[%emt 0:00:24]} Rd7 {[%emt 0:00:59]} 49. Kh3 {[%emt 0:00:59]} Rc7 {[%emt 0:00:01]} 50. f4 {[%emt 0:00:00]} Nb5 {[%emt 0:00:52]} 51. Ra5 {[%emt 0:00:01]} Na7 {[%emt 0:00:00]} 52. g4 {[%emt 0:00:28]} Ke6 {[%emt 0:00:00]} 53. Rc1 {[%emt 0:00:49]} Kd5 {[%emt 0:00:33]} 54. g5 {[%emt 0:00:30]} Nc6 {[%emt 0:00:04]} 55. Ra4 {[%emt 0:00:08]} Bd6 {[%emt 0:00:13]} 56. Kg4 {[%emt 0:00:20]} Rg7 {[%emt 0:01:19]} 57. Ra6 {[%emt 0:01:48]} Be7 {[%emt 0:01:50]} 58. Rb6 {[%emt 0:01:24]} Bd8 {[%emt 0:00:31]} 59. Rb5 {[%emt 0:00:12]} Be7 {[%emt 0:00:09]} 60. Rb6 {[%emt 0:00:14]} Bd8 {[%emt 0:00:45]} 61. Rb5 {[%emt 0:00:07]} Be7 {[%emt 0:00:09]} 62. Rb6 {[%emt 0:00:07]} Bd8 {[%emt 0:00:51]} 1/2-1/2

[Event "Turkish Youth Championship 2024"]
[Site "Samsun"]
[Date "2024.05.20"]
[Round "4"]
[White "Bulut, Kemal"]
[Black "Cilek, Bora"]
[Result "0-1"]
[ECO "B15"]
[WhiteElo "1848"]
[BlackElo "2246"]
[Annotator "ChessBase"]
[PlyCount "122"]
[EventDate "2024.05.18"]
[EventType "swiss"]
[EventCountry "TUR"]
[SourceTitle "playchess.com"]
[Source "ChessBase"]
[SourceQuality "1"]
[TimeControl "5400+30"]

1. e4 {[%emt 0:04:00]} g6 {[%emt 0:01:00]} 2. d4 {[%emt 0:00:30]} Bg7 {[%emt 0:00:00]} 3. Nc3 {[%emt 0:00:30]} c6 {[%emt 0:00:00]} 4. f4 {[%emt 0:00:30]} d5 {[%emt 0:00:30]} 5. e5 {[%emt 0:02:30]} Nh6 {[%emt 0:00:00]} 6. Nf3 {[%emt 0:01:30]} Bg4 {[%emt 0:00:00]} 7. Be2 {[%emt 0:01:30]} O-O {[%emt 0:00:30]} 8. Be3 {[%emt 0:02:30]} f6 {[%emt 0:00:30]} 9. Qd2 {[%emt 0:02:30]} Nd7 {[%emt 0:05:30]} 10. O-O {[%emt 0:03:30]} Nf5 {[%emt 0:04:30]} 11. Bf2 {[%emt 0:01:30]} Bxf3 {[%emt 0:01:30]} 12. Bxf3 {[%emt 0:00:30]} fxe5 {[%emt 0:00:00]} 13. dxe5 {[%emt 0:01:30]} e6 {[%emt 0:00:00]} 14. Ne2 {[%emt 0:02:30]} g5 {[%emt 0:07:30]} 15. g3 {[%emt 0:15:30]} gxf4 {[%emt 0:16:30]} 16. gxf4 {[%emt 0:00:00]} Bh6 {[%emt 0:00:30]} 17. Qd3 {[%emt 0:10:00]} Ng7 {[%emt 0:07:30]} 18. Bg3 {[%emt 0:10:30]} Qb6+ {[%emt 0:02:30]} 19. Kh1 {[%emt 0:00:00]} Rf7 {[%emt 0:01:30]} 20. Rg1 {[%emt 0:05:00]} Kh8 {[%emt 0:02:30]} 21. b3 {[%emt 0:04:30]} Raf8 {[%emt 0:02:30]} 22. Bg4 {[%emt 0:00:00]} Nc5 {[%emt 0:02:30]} 23. Qf3 {[%emt 0:05:00]} Ne4 {[%emt 0:01:30]} 24. Bh3 {[%emt 0:03:30]} Ng5 {[%emt 0:12:30]} 25. Qg4 {[%emt 0:01:30]} Nxh3 {[%emt 0:00:30]} 26. Qxh3 {[%emt 0:00:00]} Nf5 {[%emt 0:00:30]} 27. Bh4 {[%emt 0:14:34]} Nxh4 {[%emt 0:00:30]} 28. Qxh4 {[%emt 0:00:01]} Bxf4 {[%emt 0:00:30]} 29. Nxf4 {[%emt 0:00:41]} Rxf4 {[%emt 0:00:00]} 30. Qh6 {[%emt 0:00:00]} R4f7 {[%emt 0:01:00]} 31. Raf1 {[%emt 0:00:40]} Qb4 {[%emt 0:00:00]} 32. c4 {[%emt 0:00:34]} Qe7 {[%emt 0:02:00]} 33. Re1 {[%emt 0:03:10]} Rf2 {[%emt 0:03:30]} 34. cxd5 {[%emt 0:00:46]} cxd5 {[%emt 0:00:30]} 35. Rg3 {[%emt 0:02:12]} Qf7 {[%emt 0:00:30]} 36. Reg1 {[%emt 0:01:19]} Rf1 {[%emt 0:01:30]} 37. Qg5 {[%emt 0:00:06]} Rxg1+ {[%emt 0:00:30]} 38. Rxg1 {[%emt 0:00:04]} Rg8 {[%emt 0:02:30]} 39. Qe3 {[%emt 0:00:30]} Rxg1+ {[%emt 0:00:00]} 40. Kxg1 {[%emt 0:00:07]} Qg6+ {[%emt 0:00:00]} 41. Kf2 {[%emt 0:00:00]} Qf5+ {[%emt 0:02:30]} 42. Kg3 {[%emt 0:00:20]} a6 {[%emt 0:03:30]} 43. Qc3 {[%emt 0:00:47]} Kg7 {[%emt 0:00:30]} 44. Qc7+ {[%emt 0:01:08]} Qf7 {[%emt 0:00:00]} 45. Qc3 {[%emt 0:00:00]} Kg6 {[%emt 0:00:00]} 46. Qd4 {[%emt 0:00:32]} Qf5 {[%emt 0:01:30]} 47. Qc3 {[%emt 0:00:54]} h5 {[%emt 0:00:00]} 48. Qc7 {[%emt 0:00:41]} b5 {[%emt 0:01:00]} 49. Qb8 {[%emt 0:00:13]} Qg4+ {[%emt 0:00:51]} 50. Kf2 {[%emt 0:00:03]} Kf5 {[%emt 0:01:00]} 51. Qh8 {[%emt 0:01:47]} Ke4 {[%emt 0:00:37]} 52. Qc8 {[%emt 0:00:28]} Qf3+ {[%emt 0:02:00]} 53. Kg1 {[%emt 0:00:21]} Kxe5 {[%emt 0:01:06]} 54. Qc7+ {[%emt 0:00:20]} Ke4 {[%emt 0:00:42]} 55. Qc2+ {[%emt 0:00:18]} Kd4 {[%emt 0:01:53]} 56. Qd2+ {[%emt 0:00:17]} Kc5 {[%emt 0:00:44]} 57. Qc1+ {[%emt 0:00:42]} Kd4 {[%emt 0:01:57]} 58. Qd2+ {[%emt 0:00:15]} Ke4 {[%emt 0:01:24]} 59. Qc2+ {[%emt 0:00:38]} Kf4 {[%emt 0:00:10]} 60. Qc7+ {[%emt 0:00:00]} e5 {[%emt 0:00:12]} 61. Qf7+ {[%emt 0:00:00]} Ke3 {[%emt 0:00:15]} 0-1

[Event "Turkish Youth Championship 2024"]
[Site "Samsun"]
[Date "2024.05.20"]
[Round "4"]
[White "Herdem, Talha"]
[Black "Akyuz, Pars"]
[Result "0-1"]
[ECO "B11"]
[WhiteElo "1844"]
[BlackElo "1461"]
[Annotator "NA"]
[PlyCount "82"]
[EventDate "2024.05.18"]
[EventType "swiss"]
[EventCountry "TUR"]
[SourceTitle "playchess.com"]
[Source "ChessBase"]
[SourceQuality "1"]
[TimeControl "5400+30"]

1. e4 {[%emt 0:01:00]} c6 {[%emt 0:01:00]} 2. Nf3 {[%emt 0:00:30]} d5 {[%emt 0:00:30]} 3. Nc3 {[%emt 0:00:00]} Bg4 {[%emt 0:00:00]} 4. h3 {[%emt 0:00:00]} Bxf3 {[%emt 0:00:00]} 5. Qxf3 {[%emt 0:00:00]} e6 {[%emt 0:00:00]} 6. d3 {[%emt 0:00:00]} Nf6 {[%emt 0:01:00]} 7. Be2 {[%emt 0:00:30]} Nbd7 {[%emt 0:00:30]} 8. O-O {[%emt 0:00:30]} Bd6 {[%emt 0:00:30]} 9. d4 {[%emt 0:00:30]} dxe4 {[%emt 0:00:30]} 10. Nxe4 {[%emt 0:00:30]} Nxe4 {[%emt 0:00:30]} 11. Qxe4 {[%emt 0:00:00]} Nf6 {[%emt 0:00:00]} 12. Qf3 {[%emt 0:00:00]} h6 {[%emt 0:00:00]} 13. Rd1 {[%emt 0:00:30]} O-O {[%emt 0:00:30]} 14. c3 {[%emt 0:04:30]} Qe7 {[%emt 0:01:30]} 15. Bd3 {[%emt 0:03:30]} Rad8 {[%emt 0:03:30]} 16. Bd2 {[%emt 0:02:30]} Rd7 {[%emt 0:01:30]} 17. b4 {[%emt 0:09:30]} e5 {[%emt 0:02:30]} 18. Re1 {[%emt 0:07:30]} Qd8 {[%emt 0:01:30]} 19. Bf5 {[%emt 0:08:30]} Re7 {[%emt 0:00:30]} 20. dxe5 {[%emt 0:06:30]} Rxe5 {[%emt 0:02:30]} 21. Be3 {[%emt 0:12:30]} Rfe8 {[%emt 0:19:30]} 22. Red1 {[%emt 0:01:30]} Rd5 {[%emt 0:14:30]} 23. Bxa7 {[%emt 0:12:30]} b6 {[%emt 0:06:30]} 24. c4 {[%emt 0:00:00]} Rxd1+ {[%emt 0:09:30]} 25. Rxd1 {[%emt 0:00:00]} Qe7 {[%emt 0:00:30]} 26. g4 {[%emt 0:19:10]} g6 {[%emt 0:21:04]} 27. Bc2 {[%emt 0:09:14]} Nh7 {[%emt 0:09:08]} 28. Qxc6 {[%emt 0:01:58]} Bf4 {[%emt 0:01:07]} 29. Bxb6 {[%emt 0:00:56]} Ng5 {[%emt 0:00:52]} 30. Kg2 {[%emt 0:00:39]} Kh7 {[%emt 0:00:45]} 31. Bc5 {[%emt 0:00:32]} Qe2 {[%emt 0:00:45]} 32. Rf1 {[%emt 0:00:29]} Re6 {[%emt 0:00:26]} 33. Bd1 {[%emt 0:00:48]} Qxf1+ {[%emt 0:00:30]} 34. Kxf1 {[%emt 0:00:30]} Rxc6 {[%emt 0:00:00]} 35. a4 {[%emt 0:00:11]} Bc7 {[%emt 0:00:08]} 36. h4 {[%emt 0:00:04]} Ne4 {[%emt 0:00:38]} 37. Be3 {[%emt 0:00:57]} Rxc4 {[%emt 0:00:47]} 38. b5 {[%emt 0:00:07]} Nc3 {[%emt 0:00:00]} 39. Bb3 {[%emt 0:00:15]} Rxg4 {[%emt 0:00:37]} 40. b6 {[%emt 0:00:13]} Bxb6 {[%emt 0:00:23]} 41. Bxb6 {[%emt 0:00:09]} Rb4 {[%emt 0:00:08]} 0-1

[Event "Turkish Youth Championship 2024"]
[Site "Samsun"]
[Date "2024.05.20"]
[Round "4"]
[White "Cetindag, Alper"]
[Black "Basara, Arda"]
[Result "1-0"]
[ECO "C50"]
[WhiteElo "1839"]
[BlackElo "1943"]
[Annotator "ChessBase"]
[PlyCount "92"]
[EventDate "2024.05.18"]
[EventType "swiss"]
[EventCountry "TUR"]
[SourceTitle "playchess.com"]
[Source "ChessBase"]
[SourceQuality "1"]
[TimeControl "5400+30"]

1. e4 {[%emt 0:01:00]} e5 {[%emt 0:01:00]} 2. Nf3 {[%emt 0:00:30]} Nc6 {[%emt 0:00:30]} 3. Bc4 {[%emt 0:00:00]} Be7 {[%emt 0:00:30]} 4. d4 {[%emt 0:00:00]} exd4 {[%emt 0:03:30]} 5. c3 {[%emt 0:00:30]} Nf6 {[%emt 0:28:30]} 6. e5 {[%emt 0:00:30]} Ng4 {[%emt 0:00:30]} 7. cxd4 {[%emt 0:00:00]} d5 {[%emt 0:00:30]} 8. Bb5 {[%emt 0:07:00]} h5 {[%emt 0:10:30]} 9. Nc3 {[%emt 0:03:30]} Be6 {[%emt 0:00:30]} 10. Qa4 {[%emt 0:01:30]} Qd7 {[%emt 0:01:30]} 11. O-O {[%emt 0:08:30]} Nh6 {[%emt 0:10:30]} 12. Bg5 {[%emt 0:09:30]} Nf5 {[%emt 0:03:30]} 13. Rfd1 {[%emt 0:03:30]} O-O {[%emt 0:01:30]} 14. Rac1 {[%emt 0:00:30]} a6 {[%emt 0:03:30]} 15. Bxc6 {[%emt 0:00:30]} Qxc6 {[%emt 0:01:30]} 16. Qxc6 {[%emt 0:00:30]} bxc6 {[%emt 0:00:30]} 17. Na4 {[%emt 0:00:30]} Bd7 {[%emt 0:02:30]} 18. Bxe7 {[%emt 0:04:30]} Nxe7 {[%emt 0:00:00]} 19. h3 {[%emt 0:01:30]} Rfb8 {[%emt 0:03:00]} 20. b3 {[%emt 0:03:30]} a5 {[%emt 0:02:30]} 21. Nc5 {[%emt 0:05:30]} Bf5 {[%emt 0:02:30]} 22. Nh4 {[%emt 0:03:30]} Rb4 {[%emt 0:03:39]} 23. Rc3 {[%emt 0:02:30]} Be4 {[%emt 0:02:59]} 24. Re3 {[%emt 0:05:30]} Bc2 {[%emt 0:01:35]} 25. Rd2 {[%emt 0:00:30]} Bb1 {[%emt 0:00:01]} 26. Re1 {[%emt 0:00:00]} Bh7 {[%emt 0:01:01]} 27. f4 {[%emt 0:01:00]} Bf5 {[%emt 0:01:35]} 28. Kf2 {[%emt 0:01:30]} Re8 {[%emt 0:01:19]} 29. Kf3 {[%emt 0:01:30]} Bc8 {[%emt 0:01:31]} 30. g4 {[%emt 0:02:30]} hxg4+ {[%emt 0:01:19]} 31. hxg4 {[%emt 0:00:30]} g6 {[%emt 0:00:48]} 32. a3 {[%emt 0:03:30]} Rb8 {[%emt 0:00:14]} 33. Rg1 {[%emt 0:14:34]} Kf8 {[%emt 0:01:35]} 34. Rh2 {[%emt 0:01:02]} Ra8 {[%emt 0:01:52]} 35. Ng2 {[%emt 0:01:20]} Kg7 {[%emt 0:03:13]} 36. Rgh1 {[%emt 0:02:42]} Rg8 {[%emt 0:00:01]} 37. Ne3 {[%emt 0:00:29]} Kf8 {[%emt 0:00:35]} 38. a4 {[%emt 0:01:45]} Rb8 {[%emt 0:00:30]} 39. Ke2 {[%emt 0:02:55]} Rb4 {[%emt 0:02:46]} 40. Kd3 {[%emt 0:00:08]} Rb6 {[%emt 0:00:34]} 41. Kc3 {[%emt 0:00:26]} Rb8 {[%emt 0:00:44]} 42. Rh8 {[%emt 0:01:42]} Kg7 {[%emt 0:01:33]} 43. Rxg8+ {[%emt 0:00:12]} Kxg8 {[%emt 0:00:07]} 44. Rf1 {[%emt 0:00:23]} Kg7 {[%emt 0:01:39]} 45. f5 {[%emt 0:00:25]} Ng8 {[%emt 0:00:48]} 46. e6 {[%emt 0:01:59]} f6 {[%emt 0:00:00]} 1-0

[Event "Turkish Youth Championship 2024"]
[Site "Samsun"]
[Date "2024.05.20"]
[Round "4"]
[White "Hamurcu, Mehmet"]
[Black "Tirpan, Ceren"]
[Result "1-0"]
[ECO "B23"]
[WhiteElo "1832"]
[BlackElo "2004"]
[Annotator "ChessBase"]
[PlyCount "65"]
[EventDate "2024.05.18"]
[EventType "swiss"]
[EventCountry "TUR"]
[SourceTitle "playchess.com"]
[Source "ChessBase"]
[SourceQuality "1"]
[TimeControl "5400+30"]

1. e4 {[%emt 0:01:00]} c5 {[%emt 0:01:00]} 2. Nc3 {[%emt 0:00:30]} Nc6 {[%emt 0:00:30]} 3. Bb5 {[%emt 0:00:30]} Nd4 {[%emt 0:01:30]} 4. Nf3 {[%emt 0:03:30]} Nxb5 {[%emt 0:02:30]} 5. Nxb5 {[%emt 0:00:00]} a6 {[%emt 0:02:30]} 6. Nc3 {[%emt 0:00:00]} e6 {[%emt 0:00:00]} 7. d4 {[%emt 0:00:30]} cxd4 {[%emt 0:00:00]} 8. Qxd4 {[%emt 0:00:30]} Ne7 {[%emt 0:00:30]} 9. Bg5 {[%emt 0:04:30]} f6 {[%emt 0:07:30]} 10. Bh4 {[%emt 0:02:30]} Nc6 {[%emt 0:07:30]} 11. Qe3 {[%emt 0:04:30]} Qa5 {[%emt 0:09:30]} 12. a3 {[%emt 0:15:30]} Qc5 {[%emt 0:15:30]} 13. Qe2 {[%emt 0:06:30]} d6 {[%emt 0:16:30]} 14. Nd2 {[%emt 0:10:30]} Nd4 {[%emt 0:06:30]} 15. Qd3 {[%emt 0:03:30]} e5 {[%emt 0:03:30]} 16. f4 {[%emt 0:06:30]} Ne6 {[%emt 0:05:02]} 17. f5 {[%emt 0:12:30]} Nc7 {[%emt 0:00:08]} 18. Nb3 {[%emt 0:01:30]} Qc6 {[%emt 0:00:37]} 19. Na5 {[%emt 0:01:30]} Qd7 {[%emt 0:05:35]} 20. Nc4 {[%emt 0:01:30]} Rb8 {[%emt 0:00:27]} 21. Nb6 {[%emt 0:06:56]} Qc6 {[%emt 0:00:08]} 22. Bf2 {[%emt 0:00:51]} Be7 {[%emt 0:00:40]} 23. a4 {[%emt 0:03:58]} g6 {[%emt 0:02:19]} 24. fxg6 {[%emt 0:00:52]} hxg6 {[%emt 0:00:30]} 25. Ncd5 {[%emt 0:00:00]} Be6 {[%emt 0:03:25]} 26. Ra3 {[%emt 0:00:00]} Nxd5 {[%emt 0:01:04]} 27. exd5 {[%emt 0:00:03]} Bf5 {[%emt 0:00:04]} 28. dxc6 {[%emt 0:00:15]} bxc6 {[%emt 0:01:51]} 29. Qxa6 {[%emt 0:00:11]} Kf7 {[%emt 0:01:18]} 30. Qc4+ {[%emt 0:01:38]} d5 {[%emt 0:01:43]} 31. Qxc6 {[%emt 0:00:01]} Bxa3 {[%emt 0:00:58]} 32. Qc7+ {[%emt 0:00:24]} Be7 {[%emt 0:00:00]} 33. Bc5 {[%emt 0:00:01]} 1-0

[Event "Turkish Youth Championship 2024"]
[Site "Samsun"]
[Date "2024.05.20"]
[Round "4"]
[White "Ucar, Umut Can"]
[Black "Kesici, Eyup Can"]
[Result "0-1"]
[ECO "D00"]
[WhiteElo "1799"]
[BlackElo "1539"]
[Annotator "NA"]
[PlyCount "128"]
[EventDate "2024.05.18"]
[EventType "swiss"]
[EventCountry "TUR"]
[SourceTitle "playchess.com"]
[Source "ChessBase"]
[SourceQuality "1"]
[TimeControl "5400+30"]

1. d4 {[%emt 0:01:00]} d5 {[%emt 0:01:00]} 2. Bf4 {[%emt 0:00:30]} Nf6 {[%emt 0:00:30]} 3. e3 {[%emt 0:00:00]} e6 {[%emt 0:00:00]} 4. c3 {[%emt 0:00:00]} Bd6 {[%emt 0:00:00]} 5. Bg3 {[%emt 0:00:00]} Nbd7 {[%emt 0:00:30]} 6. Nf3 {[%emt 0:00:00]} Qe7 {[%emt 0:00:30]} 7. Bd3 {[%emt 0:00:00]} e5 {[%emt 0:00:30]} 8. dxe5 {[%emt 0:00:00]} Nxe5 {[%emt 0:00:00]} 9. Nxe5 {[%emt 0:00:30]} Bxe5 {[%emt 0:00:00]} 10. Nd2 {[%emt 0:00:00]} c6 {[%emt 0:00:30]} 11. Nf3 {[%emt 0:00:00]} Bxg3 {[%emt 0:01:30]} 12. hxg3 {[%emt 0:00:30]} Bg4 {[%emt 0:01:30]} 13. Qc2 {[%emt 0:00:30]} h5 {[%emt 0:01:30]} 14. Bf5 {[%emt 0:07:30]} Bxf5 {[%emt 0:02:30]} 15. Qxf5 {[%emt 0:00:30]} g6 {[%emt 0:00:00]} 16. Qf4 {[%emt 0:01:30]} Ne4 {[%emt 0:04:00]} 17. Nd2 {[%emt 0:04:30]} Nxd2 {[%emt 0:00:30]} 18. Kxd2 {[%emt 0:00:30]} O-O-O {[%emt 0:00:30]} 19. g4 {[%emt 0:00:30]} h4 {[%emt 0:04:30]} 20. g5 {[%emt 0:04:30]} Qe4 {[%emt 0:00:30]} 21. Rh3 {[%emt 0:01:30]} Qxg2 {[%emt 0:04:30]} 22. Rxh4 {[%emt 0:00:30]} Rxh4 {[%emt 0:01:30]} 23. Qxh4 {[%emt 0:00:00]} Qf3 {[%emt 0:04:30]} 24. Rh1 {[%emt 0:00:00]} d4 {[%emt 0:10:30]} 25. exd4 {[%emt 0:02:30]} Qd5 {[%emt 0:06:30]} 26. Qg4+ {[%emt 0:00:30]} Kb8 {[%emt 0:00:30]} 27. Qf4+ {[%emt 0:00:00]} Kc8 {[%emt 0:05:30]} 28. Rh7 {[%emt 0:17:00]} Qxa2 {[%emt 0:02:30]} 29. Qg4+ {[%emt 0:20:30]} Kb8 {[%emt 0:01:30]} 30. Kc2 {[%emt 0:01:30]} Qa4+ {[%emt 0:24:30]} 31. Kb1 {[%emt 0:00:00]} Re8 {[%emt 0:00:30]} 32. Rh1 {[%emt 0:00:00]} a6 {[%emt 0:03:30]} 33. Qf4+ {[%emt 0:18:30]} Ka7 {[%emt 0:00:30]} 34. Qd2 {[%emt 0:00:00]} Qb5 {[%emt 0:00:30]} 35. Re1 {[%emt 0:09:24]} Rxe1+ {[%emt 0:00:30]} 36. Qxe1 {[%emt 0:00:00]} Qf5+ {[%emt 0:00:30]} 37. Ka1 {[%emt 0:00:34]} Qxg5 {[%emt 0:00:30]} 38. Qe2 {[%emt 0:00:41]} Qd5 {[%emt 0:02:06]} 39. Qe7 {[%emt 0:00:47]} g5 {[%emt 0:01:36]} 40. f3 {[%emt 0:02:02]} a5 {[%emt 0:02:45]} 41. Qf6 {[%emt 0:01:37]} Ka6 {[%emt 0:01:52]} 42. Kb1 {[%emt 0:00:36]} a4 {[%emt 0:01:55]} 43. Qe7 {[%emt 0:02:48]} Qxf3 {[%emt 0:00:32]} 44. Kc1 {[%emt 0:02:33]} g4 {[%emt 0:00:42]} 45. Qb4 {[%emt 0:00:49]} Qf1+ {[%emt 0:02:35]} 46. Kc2 {[%emt 0:00:06]} Qe2+ {[%emt 0:00:24]} 47. Kc1 {[%emt 0:00:13]} Qb5 {[%emt 0:00:46]} 48. Qf8 {[%emt 0:00:13]} Qg5+ {[%emt 0:00:50]} 49. Kc2 {[%emt 0:00:24]} Ka7 {[%emt 0:05:15]} 50. c4 {[%emt 0:02:18]} Qf5+ {[%emt 0:00:38]} 51. Kc3 {[%emt 0:00:48]} Qf3+ {[%emt 0:00:10]} 52. Kd2 {[%emt 0:02:10]} Qf2+ {[%emt 0:00:19]} 53. Kd3 {[%emt 0:00:08]} Qf1+ {[%emt 0:00:22]} 54. Kc3 {[%emt 0:00:56]} Qc1+ {[%emt 0:00:30]} 55. Kd3 {[%emt 0:00:00]} Qd1+ {[%emt 0:00:00]} 56. Ke3 {[%emt 0:00:14]} Qb3+ {[%emt 0:00:42]} 57. Kf4 {[%emt 0:00:28]} Qxc4 {[%emt 0:00:34]} 58. Qd8 {[%emt 0:00:26]} Qb4 {[%emt 0:02:12]} 59. Kg3 {[%emt 0:00:40]} f5 {[%emt 0:00:41]} 60. Kh4 {[%emt 0:00:10]} Qe1+ {[%emt 0:00:28]} 61. Kg5 {[%emt 0:00:08]} g3 {[%emt 0:00:48]} 62. Qd6 {[%emt 0:00:22]} Qc1+ {[%emt 0:00:45]} 63. Kxf5 {[%emt 0:01:57]} g2 {[%emt 0:00:12]} 64. Qc5+ {[%emt 0:00:26]} Qxc5+ {[%emt 0:00:13]} 0-1